fUST/lending_fUST_20251214
["ID","MTS","AMOUNT","RATE_DAILY","PERIOD"]
[398450819,1765666169186,-500.0,0.00013699,2]
[398450820,1765666169206,-500.0,0.00013699,2]
[398450821,1765666169225,-201.87384669,0.00013699,2]
[398450822,1765666169245,-500.0,0.00013699,2]
[398450823,1765666169266,-503.67438749,0.00013699,2]
[398450824,1765666169285,-500.0,0.00013699,2]
[398450825,1765666169305,-501.41051891,0.00013699,2]
[398450826,1765666169326,-500.0,0.00013699,2]
[398450827,1765666169346,-500.0,0.00013699,2]
[398450828,1765666169366,-159.43456874,0.00013699,2]
[398450829,1765666169385,-500.0,0.00013699,2]
[398450830,1765666169406,-502.31467733,0.00013699,2]
[398450831,1765666169425,-500.0,0.00013699,2]
[398450832,1765666169444,-500.0,0.00013699,2]
[398450833,1765666169462,-500.0,0.00013699,2]
[398450834,1765666169552,-500.0,0.00013699,2]
[398450835,1765666169572,-500.0,0.00013699,2]
[398450836,1765666169591,-500.0,0.00013699,2]
[398450837,1765666169614,-500.0,0.00013699,2]
[398450838,1765666169634,-500.0,0.00013699,2]
[398450839,1765666169655,-500.45894927,0.00013699,2]
[398450840,1765666169674,-500.0,0.00013699,2]
[398450841,1765666169693,-500.0,0.00013699,2]
[398450842,1765666169713,-500.0,0.00013699,2]
[398450843,1765666169732,-500.0,0.00013699,2]
[398450844,1765666169752,-500.0,0.00013699,2]
[398450845,1765666169771,-500.0,0.00013699,2]
[398450846,1765666169790,-500.0,0.00013699,2]
[398450847,1765666169809,-415.91655572,0.00013699,2]
[398450848,1765666169827,-500.38776688,0.00013699,2]
[398450849,1765666169845,-500.0,0.00013699,2]
[398450850,1765666169864,-500.0,0.00013699,2]
[398450851,1765666169883,-500.0,0.00013699,2]
[398450852,1765666169901,-500.0,0.00013699,2]
[398450853,1765666169920,-500.0,0.00013699,2]
[398450854,1765666169940,-501.24825546,0.00013699,2]
[398450855,1765666169958,-500.0,0.00013699,2]
[398450856,1765666169977,-500.0,0.00013699,2]
[398450857,1765666169995,-500.0,0.00013699,2]
[398450858,1765666170013,-500.0,0.00013699,2]
[398450859,1765666170032,-177.71907626,0.00013699,2]
[398450860,1765666170052,-500.0,0.00013699,2]
[398450861,1765666170069,-500.0,0.00013699,2]
[398450862,1765666170088,-500.0,0.00013699,2]
[398450863,1765666170105,-523.72730496,0.00013699,2]
[398450864,1765666170124,-500.0,0.00013699,2]
[398450865,1765666170141,-455.01219198,0.00013699,2]
[398450866,1765666170160,-564.41208309,0.00013699,2]
[398450867,1765666170178,-159.83026529,0.00013699,2]
[398450868,1765666170197,-500.0,0.00013699,2]
[398450869,1765666170216,-500.0,0.00013699,2]
[398450870,1765666170236,-295.86336359,0.00013699,2]
[398450871,1765666170253,-500.0,0.00013699,2]
[398450872,1765666170271,-500.0,0.00013699,2]
[398450873,1765666170289,-500.0,0.00013699,2]
[398450874,1765666170308,-500.0,0.00013699,2]
[398450875,1765666170327,-500.0,0.00013699,2]
[398450876,1765666170346,-500.0,0.00013699,2]
[398450877,1765666170366,-500.0,0.00013699,2]
[398450878,1765666170384,-635.44007707,0.00013699,2]
[398450879,1765666170403,-500.0,0.00013699,2]
[398450880,1765666170422,-500.0,0.00013699,2]
[398450881,1765666170442,-500.0,0.00013699,2]
[398450882,1765666170461,-523.8037084,0.00013699,2]
[398450883,1765666170479,-500.0,0.00013699,2]
[398450884,1765666170498,-500.0,0.00013699,2]
[398450885,1765666170516,-159.09366451,0.00013699,2]
[398450886,1765666170539,-500.0,0.00013699,2]
[398450887,1765666170558,-500.0,0.00013699,2]
[398450888,1765666170577,-163.3262848,0.00013699,2]
[398450889,1765666170595,-500.0,0.00013699,2]
[398450890,1765666170616,-500.0,0.00013699,2]
[398450891,1765666170636,-157.78617662,0.00013699,2]
[398450892,1765666170655,-500.0,0.00013699,2]
[398450893,1765666170673,-517.74593838,0.00013699,2]
[398450894,1765666170691,-533.74933761,0.00013699,2]
[398450895,1765666170710,-500.0,0.00013699,2]
[398450896,1765666170729,-500.0,0.00013699,2]
[398450897,1765666170747,-500.0,0.00013699,2]
[398450898,1765666170766,-500.0,0.00013699,2]
[398450899,1765666170785,-500.0,0.00013699,2]
[398450900,1765666170804,-468.72265487,0.00013699,2]
[398450901,1765666170823,-500.0,0.00013699,2]
[398450902,1765666170845,-188.99,0.000137,2]
[398450903,1765666170864,-500.0,0.00013718,2]
[398450904,1765666170882,-500.0,0.00013719,2]
[398450905,1765666170901,-500.0,0.00013719,2]
[398450906,1765666170919,-500.0,0.00013719,2]
[398450907,1765666170937,-500.0,0.00013719,2]
[398450908,1765666170956,-500.0,0.0001382,2]
[398450909,1765666170974,-500.0,0.0001382,2]
[398450910,1765666170992,-500.0,0.0001382,2]
[398450911,1765666171011,-533.74100607,0.0001382,2]
[398450912,1765666171030,-500.0,0.0001382,2]
[398450913,1765666171049,-500.0,0.0001382,2]
[398450914,1765666171067,-1000.0,0.00013821,2]
[398450915,1765666171085,-933.72408148,0.00013821,2]
[398450916,1765666171104,-1000.0,0.00013821,2]
[398450917,1765666171122,-1000.0,0.00013821,2]
[398450918,1765666171141,-500.0,0.00013821,2]
[398450919,1765666171160,-1000.0,0.00013821,2]
[398450920,1765666171179,-761.31253639,0.00013821,2]
[398450921,1765666174073,-188.99,0.000137,2]
[398450922,1765666174096,-188.99,0.000137,2]
[398450923,1765666174119,-188.99,0.000137,2]
[398450924,1765666174141,-188.99,0.000137,2]
[398450925,1765666174163,-188.99,0.000137,2]
[398450926,1765666174184,-188.99,0.000137,2]
[398450927,1765666174207,-188.99,0.000137,2]
[398450928,1765666174230,-147.07,0.000138,2]
[398450929,1765666203069,500.0,0.00013273,2]
[398450930,1765666208396,703.64,0.00013065,2]
[398450931,1765666210567,154.26,0.000134,2]
[398450932,1765666210929,154.26,0.000134,2]
[398450976,1765666232204,-154.26,0.000135,2]
[398450978,1765666232214,-154.26,0.000135,2]
[398450980,1765666232223,-154.26,0.000135,2]
[398450982,1765666232232,-154.26,0.000135,2]
[398450984,1765666232241,-154.26,0.000136,2]
[398450986,1765666232250,-154.26,0.000136,2]
[398450988,1765666232259,-154.26,0.000136,2]
[398450990,1765666232270,-154.26,0.000136,2]
[398450991,1765666232279,-1200.0,0.00013698,2]
[398450993,1765666232288,-500.0,0.00013699,2]
[398450995,1765666232296,-500.0,0.00013699,2]
[398450997,1765666232305,-500.0,0.00013699,2]
[398450998,1765666232314,-500.0,0.00013699,2]
[398451000,1765666232323,-500.0,0.00013699,2]
[398451002,1765666232332,-500.0,0.00013699,2]
[398451004,1765666232341,-500.0,0.00013699,2]
[398451006,1765666232350,-500.0,0.00013699,2]
[398451008,1765666232359,-500.0,0.00013699,2]
[398451010,1765666232368,-307.7542192,0.00013699,2]
[398451012,1765666232377,-500.0,0.00013699,2]
[398451014,1765666232387,-538.52124969,0.00013699,2]
[398451016,1765666232397,-500.0,0.00013699,2]
[398451018,1765666232407,-500.0,0.00013699,2]
[398451020,1765666232416,-500.0,0.00013699,2]
[398451021,1765666232425,-154.26,0.000137,2]
[398451023,1765666232435,-154.26,0.000137,2]
[398451025,1765666232444,-154.26,0.000137,2]
[398451027,1765666232453,-154.26,0.000137,2]
[398451029,1765666232461,-154.26,0.000137,2]
[398451031,1765666232470,-300.0,0.00013799,2]
[398451033,1765666232479,-300.0,0.00013799,2]
[398451035,1765666232488,-300.0,0.00013799,2]
[398451037,1765666232497,-617.0,0.000138,2]
[398451038,1765666232506,-154.26,0.000138,2]
[398451040,1765666232515,-154.26,0.000138,2]
[398451042,1765666232524,-154.26,0.000138,2]
[398451044,1765666232535,-154.26,0.000138,2]
[398451046,1765666232545,-238.68746361,0.00013821,2]
[398451047,1765666232554,-1000.0,0.00013821,2]
[398451049,1765666232563,-1000.0,0.00013821,2]
[398451051,1765666232572,-1000.0,0.00013821,2]
[398451053,1765666232583,-1000.0,0.00013821,2]
[398451055,1765666232591,-500.0,0.00013821,2]
[398451057,1765666232600,-500.0,0.00013821,2]
[398451059,1765666232611,-500.0,0.00013821,2]
[398451061,1765666232619,-1000.90033952,0.00013821,2]
[398451063,1765666232628,-154.26,0.000139,2]
[398451065,1765666232637,-154.26,0.000139,2]
[398451066,1765666232646,-154.26,0.000139,2]
[398451068,1765666232655,-154.26,0.000139,2]
[398451070,1765666232664,-257.00488699,0.00013941,2]
[398451072,1765666232673,-300.0,0.0001397,2]
[398451074,1765666232682,-300.0,0.0001397,2]
[398451076,1765666232691,-300.0,0.0001397,2]
[398451078,1765666232699,-300.0,0.0001397,2]
[398451079,1765666232708,-300.0,0.0001397,2]
[398451081,1765666232717,-300.0,0.0001397,2]
[398451083,1765666232726,-300.0,0.0001397,2]
[398451085,1765666232735,-300.0,0.0001397,2]
[398451087,1765666232744,-300.0,0.0001397,2]
[398451089,1765666232753,-300.0,0.0001397,2]
[398451091,1765666232762,-300.0,0.0001397,2]
[398451093,1765666232772,-300.0,0.0001397,2]
[398451095,1765666232782,-300.0,0.0001397,2]
[398451096,1765666232791,-300.0,0.0001397,2]
[398451098,1765666232800,-300.0,0.0001397,2]
[398451100,1765666232809,-500.0,0.0001397,2]
[398451101,1765666232818,-600.0,0.00013972,2]
[398451102,1765666232826,-154.26,0.00014,2]
[398451104,1765666232835,-154.26,0.00014,2]
[398451106,1765666232844,-500.0,0.00014244,2]
[398451108,1765666232854,-500.0,0.00014246,2]
[398451110,1765666232863,-209.45923035,0.00014246,2]
[398451111,1765666232872,-449.60635293,0.00014246,2]
[398451113,1765666232881,-500.0,0.00014246,2]
[398451115,1765666232890,-500.0,0.00014246,2]
[398451116,1765666232899,-500.0,0.00014246,2]
[398451118,1765666232909,-500.0,0.00014246,2]
[398451120,1765666232918,-500.0,0.00014246,2]
[398451122,1765666232927,-500.0,0.00014246,2]
[398451123,1765666232936,-500.0,0.00014246,2]
[398451125,1765666232945,-500.0,0.00014246,2]
[398451127,1765666232954,-500.0,0.00014246,2]
[398451129,1765666232963,-1000.42549966,0.00014247,2]
[398451130,1765666232973,-1000.35590751,0.00014247,2]
[398451132,1765666232982,-1000.34015654,0.00014247,2]
[398451134,1765666232990,-1000.68974637,0.00014247,2]
[398451135,1765666233000,-500.0,0.00014247,2]
[398451137,1765666233009,-377.29285443,0.00014247,2]
[398451139,1765666233018,-302.82463151,0.00014247,2]
[398451216,1765666238949,-500.0,0.00014246,2]
[398451218,1765666238959,-500.0,0.00014246,2]
[398451220,1765666238968,-500.0,0.00014246,2]
[398451222,1765666238978,-698.23267639,0.00014247,2]
[398451224,1765666238987,-500.0,0.00014247,2]
[398451226,1765666238997,-1106.74694375,0.00014247,2]
[398451228,1765666239007,-1000.76881636,0.00014247,2]
[398451230,1765666239016,-184.82986314,0.00014247,2]
[398451232,1765666239026,-1000.74688986,0.00014247,2]
[398451234,1765666239036,-1000.96774051,0.00014247,2]
[398451236,1765666239046,-1000.34993863,0.00014247,2]
[398451238,1765666239056,-1000.27761524,0.00014247,2]
[398451240,1765666239065,-1000.22074885,0.00014247,2]
[398451242,1765666239075,-606.91542145,0.00014247,2]
[398451244,1765666239085,-1000.80364139,0.00014247,2]
[398451246,1765666239095,-1000.38376439,0.00014247,2]
[398451248,1765666239105,-1000.2707144,0.00014247,2]
[398451250,1765666239115,-1000.45021216,0.00014247,2]
[398451252,1765666239125,-1000.9196111,0.00014247,2]
[398451255,1765666239135,-748.735427,0.00014247,2]
[398451257,1765666239144,-500.0,0.00014247,2]
[398451259,1765666239154,-1000.90910416,0.00014247,2]
[398451260,1765666239163,-238.66895318,0.00014247,2]
[398451263,1765666239179,-261.33104682,0.00014247,2]
[398451264,1765666239188,-500.0,0.00014247,2]
[398451265,1765666239197,-1000.30927363,0.00014247,2]
[398451266,1765666239207,-500.0,0.00014247,2]
[398451267,1765666239217,-1001.36769892,0.00014247,2]
[398451268,1765666239226,-1002.87950877,0.00014247,2]
[398451269,1765666239235,-1001.51612328,0.00014247,2]
[398451270,1765666239245,-1000.56201004,0.00014247,2]
[398451271,1765666239255,-1000.57475529,0.00014247,2]
[398451272,1765666239265,-500.0,0.00014247,2]
[398451273,1765666239274,-1000.70419437,0.00014247,2]
[398451274,1765666239283,-937.47034863,0.00014247,2]
[398451275,1765666239292,-500.0,0.00014247,2]
[398451276,1765666239302,-500.0,0.00014247,2]
[398451277,1765666239311,-176.89178544,0.00014247,2]
[398451278,1765666239320,-451.51206704,0.00014247,2]
[398451279,1765666239330,-501.86769934,0.00014247,2]
[398451280,1765666239339,-1096.96255837,0.00014247,2]
[398451281,1765666239348,-500.0,0.00014247,2]
[398451282,1765666239358,-500.0,0.00014247,2]
[398451283,1765666239367,-765.31107252,0.00014247,2]
[398451284,1765666239377,-816.67330098,0.00014247,2]
[398451285,1765666239386,-1000.36399291,0.00014247,2]
[398451286,1765666239396,-1000.36783804,0.00014247,2]
[398451287,1765666239405,-1001.0535706,0.00014247,2]
[398451288,1765666239415,-1008.21368067,0.00014247,2]
[398451289,1765666239424,-1000.66195523,0.00014247,2]
[398451290,1765666239433,-1000.2456921,0.00014247,2]
[398451291,1765666239442,-222.38018091,0.00014247,2]
[398451292,1765666239452,-500.0,0.00014247,2]
[398451293,1765666239462,-836.94979947,0.00014247,2]
[398451294,1765666239472,-1000.4205038,0.00014247,2]
[398451295,1765666239481,-500.0,0.00014247,2]
[398451296,1765666239491,-1003.51294868,0.00014247,2]
[398451297,1765666239501,-252.80287864,0.00014247,2]
[398451298,1765666239510,-1000.7978021,0.00014247,2]
[398451299,1765666239519,-1000.42407717,0.00014247,2]
[398451300,1765666239528,-500.67913754,0.00014247,2]
[398451301,1765666239540,-500.59239819,0.00014247,2]
[398451302,1765666239550,-500.70426284,0.00014247,2]
[398451303,1765666239560,-500.55728106,0.00014247,2]
[398451304,1765666239569,-500.0,0.00014368,2]
[398451305,1765666239579,-164.44338621,0.00014368,2]
[398451306,1765666239588,-876.60583289,0.00014368,2]
[398451307,1765666239598,-500.0,0.00014368,2]
[398451309,1765666239608,-500.0,0.00014368,2]
[398451311,1765666239619,-500.0,0.00014368,2]
[398451313,1765666239628,-502.4935863,0.00014368,2]
[398451315,1765666239637,-500.59868399,0.00014368,2]
[398451317,1765666239647,-1001.03740899,0.00014368,2]
[398451319,1765666239656,-500.0,0.00014389,2]
[398451321,1765666239666,-500.0,0.00014402,2]
[398451323,1765666239675,-500.0,0.00014402,2]
[398451325,1765666239685,-500.0,0.00014402,2]
[398451327,1765666239694,-500.0,0.00014518,2]
[398451329,1765666239703,-500.0,0.0001459,2]
[398451331,1765666239712,-500.0,0.0001459,2]
[398451333,1765666239722,-500.0,0.0001459,2]
[398451335,1765666239730,-500.0,0.00014593,2]
[398451337,1765666239739,-500.0,0.00014593,2]
[398451339,1765666239748,-500.0,0.00014593,2]
[398451340,1765666239758,-314.78992851,0.00014712,2]
[398451342,1765666239767,-574.12855637,0.00014754,2]
[398451344,1765666239776,-2773.56790519,0.00014754,2]
[398451346,1765666239786,-1680.0,0.00014796,2]
[398451348,1765666239795,-420.0,0.00014899,2]
[398451350,1765666239804,-500.0,0.00014956,2]
[398451352,1765666239815,-500.0,0.00014969,2]
[398451355,1765666239825,-500.0,0.00014969,2]
[398451356,1765666239834,-500.0,0.00014969,2]
[398451358,1765666239843,-1680.0,0.00015067,2]
[398451360,1765666239853,-500.0,0.00015106,2]
[398451362,1765666239862,-500.0,0.00015106,2]
[398451364,1765666239871,-300.0,0.00015121,2]
[398451366,1765666239880,-420.0,0.00015121,2]
[398451368,1765666239889,-500.0,0.00015144,2]
[398451370,1765666239898,-500.0,0.00015144,2]
[398451372,1765666239908,-500.0,0.00015221,2]
[398451375,1765666239917,-500.0,0.00015221,2]
[398451377,1765666239926,-500.0,0.00015237,2]
[398451379,1765666239935,-233.3251245,0.00015238,2]
[398451381,1765666239944,-500.0,0.00015261,2]
[398451383,1765666239953,-275.7,0.00015261,2]
[398451385,1765666239962,-500.0,0.00015282,2]
[398451415,1765666240181,-500.0,0.00015299,2]
[398451417,1765666240200,-329.64182917,0.00015302,2]
[398451419,1765666240209,-2876.18991768,0.00015302,2]
[398451421,1765666240219,-689.1393784,0.00015303,2]
[398451423,1765666240228,-720.0,0.00015369,2]
[398451426,1765666240238,-500.0,0.0001538,2]
[398451427,1765666240247,-500.0,0.00015381,2]
[398451430,1765666240257,-500.0,0.00015381,2]
[398451431,1765666240266,-500.0,0.00015381,2]
[398451434,1765666240275,-340.96,0.00015381,2]
[398451435,1765666240284,-276.75566567,0.00015547,2]
[398451437,1765666240293,-218.86818346,0.00015636,2]
[398451439,1765666240302,-612.43575519,0.00015654,2]
[398451442,1765666240312,-218.86818346,0.00015753,2]
[398451443,1765666240321,-2982.60894464,0.0001585,2]
[398451446,1765666240331,-219.08705164,0.0001587,2]
[398451448,1765666240340,-500.0,0.00016065,2]
[398451449,1765666240350,-1043.0,0.00016219,2]
[398451451,1765666240359,-500.0,0.00016332,2]
[398451454,1765666240368,-3092.96547559,0.00016398,2]
[398451455,1765666240378,-315.10471843,0.00016524,2]
[398451457,1765666240387,-587.0,0.00016569,2]
[398451459,1765666240397,-1165.0,0.00016574,2]
[398451461,1765666240406,-179.906,0.0001678,2]
[398451463,1765666240415,-233.3251245,0.00016887,2]
[398451466,1765666240424,-864.0,0.00016906,2]
[398451467,1765666240434,-689.1393784,0.00016909,2]
[398451470,1765666240445,-3207.40519818,0.00016946,2]
[398451472,1765666240454,-3326.07919052,0.00017494,2]
[398451473,1765666240465,-318.97263162,0.00017547,2]
[398451475,1765666240474,-500.0,0.0001759,2]
[398451477,1765666240485,-612.43575519,0.00017708,2]
[398451480,1765666240494,-154.9841517,0.00017757,2]
[398451483,1765666240515,-500.0,0.00017776,2]
[398451485,1765666240526,-500.0,0.00017847,2]
[398451487,1765666240536,-150.0,0.00017847,2]
[398451489,1765666240547,-150.0,0.00017847,2]
[398451491,1765666240557,-500.0,0.00017847,2]
[398451493,1765666240568,-500.0,0.00017847,2]
[398451495,1765666240579,-150.0,0.00017847,2]
[398451497,1765666240589,-151.4763387,0.00017847,2]
[398451499,1765666240598,-267.77663753,0.00017847,2]
[398451501,1765666240608,-636.0,0.00017984,2]
[398451503,1765666240619,-152.19917669,0.00017984,2]
[398451505,1765666240629,-150.0,0.00017984,2]
[398451507,1765666240639,-500.0,0.00017984,2]
[398451509,1765666240649,-500.0,0.00017984,2]
[398451512,1765666240659,-276.48450572,0.00017984,2]
[398451514,1765666240669,-3449.14412057,0.00018042,2]
[398451516,1765666240679,-200.0,0.00018121,2]
[398451518,1765666240689,-500.0,0.00018121,2]
[398451520,1765666240702,-500.0,0.00018121,2]
[398451522,1765666240711,-817.0,0.00018156,2]
[398451524,1765666240720,-500.0,0.00018258,2]
[398451526,1765666240731,-298.36489375,0.00018258,2]
[398451528,1765666240740,-596.0,0.00018395,2]
[398451530,1765666240750,-689.1393784,0.00018515,2]
[398451532,1765666240760,-233.3251245,0.00018535,2]
[398451534,1765666240770,-3576.76245303,0.0001859,2]
[398451536,1765666240779,-1000.0,0.00018596,10]
[398451539,1765666240789,-333.33333333,0.00019,2]
[398451541,1765666240799,-347.69317249,0.00019,2]
[398451543,1765666240808,-363.7692657,0.000195,2]
[398451545,1765666240817,-333.33333333,0.00019536,9]
[398451547,1765666240827,-347.69317249,0.00019536,9]
[398451549,1765666240837,-361.18959757,0.00019547,2]
[398451551,1765666240846,-394.7644711,0.00019734,2]
[398451553,1765666240856,-612.43575519,0.00019763,2]
[398451555,1765666240865,-2156.0,0.00019896,2]
[398451557,1765666240875,-1360.0,0.00019896,2]
[398451559,1765666240884,-632.0,0.00019896,2]
[398451561,1765666240894,-397.8515273,0.0002,2]
[398451563,1765666240903,-333.33333333,0.00020072,17]
[398451565,1765666240912,-347.69317249,0.00020072,17]
[398451567,1765666240922,-500.0,0.00020455,2]
[398451569,1765666240931,-1000.0,0.00020456,10]
[398451571,1765666240941,-244.0,0.00020456,10]
[398451573,1765666240950,-198.08824625,0.00020553,2]
[398451575,1765666240960,-333.33333333,0.00020607,25]
[398451577,1765666240969,-347.69317249,0.00020607,25]
[398451579,1765666240978,-333.33333333,0.00021143,32]
[398451581,1765666240988,-347.69317249,0.00021143,32]
[398451583,1765666240998,-500.0,0.00021287,2]
[398451585,1765666241007,-208.01638868,0.00021479,2]
[398451587,1765666241017,-403.40656352,0.00021547,2]
[398451589,1765666241026,-333.33333333,0.00021679,40]
[398451591,1765666241035,-347.69317249,0.00021679,40]
[398451593,1765666241044,-173.27107891,0.0002175,15]
[398451595,1765666241055,-612.43575519,0.00021817,2]
[398451598,1765666241065,-250.0,0.000219,10]
[398451600,1765666241075,-500.0,0.00021916,2]
[398451602,1765666241084,-500.0,0.00021916,2]
[398451604,1765666241093,-358.46327283,0.00021916,2]
[398451606,1765666241102,-500.0,0.00021916,2]
[398451608,1765666241111,-500.0,0.00021916,2]
[398451609,1765666241120,-500.0,0.00021916,2]
[398451611,1765666241129,-500.0,0.00021916,2]
[398451613,1765666241140,-454.6,0.00021916,2]
[398451616,1765666241150,-1000.0,0.00021917,2]
[398451618,1765666241159,-1000.0,0.00021917,2]
[398451620,1765666241168,-500.0,0.00021917,2]
[398451622,1765666241178,-500.0,0.00021917,2]
[398451623,1765666241188,-500.0,0.00021917,2]
[398451626,1765666241197,-500.0,0.00021917,2]
[398451627,1765666241206,-500.0,0.00021917,2]
[398451630,1765666241216,-168.19902106,0.00021917,2]
[398451632,1765666241225,-500.58737193,0.00021917,2]
[398451633,1765666241235,-500.0,0.00021917,2]
[398451635,1765666241245,-500.0,0.00021917,2]
[398451637,1765666241254,-1499.42,0.00021917,2]
[398451639,1765666241264,-500.0,0.00021917,2]
[398451642,1765666241273,-500.0,0.00021917,2]
[398451644,1765666241283,-500.0,0.00021917,2]
[398451646,1765666241292,-500.0,0.00021917,2]
[398451648,1765666241302,-500.0,0.00021917,2]
[398451649,1765666241311,-500.0,0.00021917,2]
[398451651,1765666241320,-500.0,0.00021917,2]
[398451654,1765666241330,-1035.4,0.00021917,2]
[398451656,1765666241340,-500.0,0.00021917,2]
[398451658,1765666241349,-437.96445452,0.00021917,2]
[398451660,1765666241359,-510.71,0.00021917,2]
[398451662,1765666241368,-853.65,0.00021917,2]
[398451664,1765666241378,-788.33601814,0.00021917,2]
[398451666,1765666241387,-169.852545,0.00021917,2]
[398451668,1765666241397,-1401.48625448,0.00021917,2]
[398451670,1765666241407,-500.0,0.00021917,2]
[398451672,1765666241417,-828.07,0.00021917,2]
[398451674,1765666241426,-313.73485998,0.00021917,2]
[398451676,1765666241436,-532.77783785,0.00021917,2]
[398451678,1765666241445,-500.0,0.00021917,2]
[398451680,1765666241455,-2329.262889,0.00021917,2]
[398451682,1765666241465,-500.0,0.00021917,2]
[398451684,1765666241475,-1418.12,0.00021917,2]
[398451686,1765666241484,-888.94,0.00021917,2]
[398451688,1765666241493,-957.43,0.00021917,2]
[398451690,1765666241502,-500.0,0.00021917,2]
[398451692,1765666241512,-764.23,0.00021917,2]
[398451694,1765666241522,-500.0,0.00021917,2]
[398451696,1765666241531,-500.0,0.00021917,2]
[398451698,1765666241545,-500.0,0.00021917,2]
[398451700,1765666241554,-500.0,0.00021917,2]
[398451702,1765666241564,-500.0,0.00021917,2]
[398451704,1765666241574,-500.0,0.00021917,2]
[398451706,1765666241583,-500.0,0.00021917,2]
[398451708,1765666241593,-500.26175228,0.00021917,2]
[398451710,1765666241602,-500.0,0.00021917,2]
[398451712,1765666241613,-500.0,0.00021917,2]
[398451714,1765666241623,-500.0,0.00021917,2]
[398451716,1765666241632,-500.0,0.00021917,2]
[398451718,1765666241643,-500.0,0.00021917,2]
[398451720,1765666241652,-500.0,0.00021917,2]
[398451722,1765666241661,-500.0,0.00021917,2]
[398451724,1765666241670,-500.0,0.00021917,2]
[398451726,1765666241680,-500.0,0.00021917,2]
[398451728,1765666241689,-507.22147128,0.00021917,2]
[398451730,1765666241699,-500.0,0.00021917,2]
[398451732,1765666241708,-875.05,0.00021917,2]
[398451734,1765666241719,-500.0,0.00021917,2]
[398451736,1765666241728,-500.0,0.00021917,2]
[398451738,1765666241738,-500.0,0.00021917,2]
[398451740,1765666241747,-500.0,0.00021917,2]
[398451742,1765666241757,-812.41,0.00021917,2]
[398451744,1765666241766,-500.0,0.00021917,2]
[398451746,1765666241775,-500.0,0.00021917,2]
[398451748,1765666241785,-500.58056381,0.00021917,2]
[398451750,1765666241794,-926.81,0.00021917,2]
[398451752,1765666241803,-500.0,0.00021917,2]
[398451754,1765666241813,-500.0,0.00021917,2]
[398451756,1765666241822,-1086.02,0.00021917,2]
[398451758,1765666241832,-500.0,0.00021917,2]
[398451760,1765666241841,-544.48909342,0.00021917,2]
[398451762,1765666241851,-500.0,0.00021917,2]
[398451764,1765666241860,-500.0,0.00021917,2]
[398451766,1765666241870,-500.0,0.00021917,2]
[398451768,1765666241880,-522.9,0.00021917,2]
[398451770,1765666241889,-1665.42,0.00021917,2]
[398451772,1765666241899,-519.90768857,0.00021917,2]
[398451774,1765666241908,-500.0,0.00021917,2]
[398451776,1765666241918,-500.0,0.00021917,2]
[398451778,1765666241928,-1592.92,0.00021917,2]
[398451780,1765666241937,-500.0,0.00021917,2]
[398451782,1765666241947,-500.0,0.00021917,2]
[398451784,1765666241956,-500.0,0.00021917,2]
[398451786,1765666241966,-562.51,0.00021917,2]
[398451788,1765666241976,-1382.18,0.00021917,2]
[398451790,1765666241985,-500.0,0.00021917,2]
[398451792,1765666241994,-500.0,0.00021917,2]
[398451794,1765666242003,-1301.11,0.00021917,2]
[398451797,1765666242017,-500.0,0.00021917,2]